[Event "Early-Titled-Tuesday-Blitz-January-16-2024"]
[Site "Chess.com"]
[Date "2024.01.16"]
[Round "2"]
[White "otrov-11"]
[Black "ilqar_74"]
[Result "0-1"]
[WhiteElo "2463"]
[BlackElo "2823"]
[TimeControl "180+1"]
[EndTime "8:16:12 PST"]
[Termination "ilqar_74 won by resignation"]

1. d4 {[%clk 0:03:00.9]} 1... Nf6 {[%clk 0:02:59.4]} 2. c4 {[%clk 0:03:01.1]}
2... e6 {[%clk 0:03:00]} 3. g3 {[%clk 0:03:01.5]} 3... d5 {[%clk 0:03:00.5]} 4.
Nf3 {[%clk 0:03:01.7]} 4... Be7 {[%clk 0:03:00.9]} 5. Bg2 {[%clk 0:03:02.3]}
5... O-O {[%clk 0:03:01.5]} 6. O-O {[%clk 0:03:03.2]} 6... dxc4 {[%clk
0:03:01.9]} 7. Qc2 {[%clk 0:03:03.5]} 7... a6 {[%clk 0:03:02.4]} 8. a4 {[%clk
0:03:02.7]} 8... Nc6 {[%clk 0:03:02.1]} 9. Qxc4 {[%clk 0:03:02.8]} 9... Na5
{[%clk 0:03:02.7]} 10. Qc2 {[%clk 0:03:01.3]} 10... b6 {[%clk 0:03:03.2]} 11.
Nc3 {[%clk 0:03:00.8]} 11... Bb7 {[%clk 0:03:03.5]} 12. Rd1 {[%clk 0:03:01.1]}
12... Rc8 {[%clk 0:02:59.8]} 13. Bg5 {[%clk 0:02:57.4]} 13... h6 {[%clk
0:02:58.1]} 14. Bxf6 {[%clk 0:02:57.8]} 14... Bxf6 {[%clk 0:02:59]} 15. b4
{[%clk 0:02:53.2]} 15... Nc6 {[%clk 0:02:57]} 16. Qb3 {[%clk 0:02:44.1]} 16...
Qe7 {[%clk 0:02:50.1]} 17. d5 {[%clk 0:02:42]} 17... Qxb4 {[%clk 0:02:35.8]} 18.
Qc2 {[%clk 0:01:43.7]} 18... Qxc3 {[%clk 0:02:24.4]} 19. Qxc3 {[%clk 0:01:42.7]}
19... Bxc3 {[%clk 0:02:21.8]} 20. Rac1 {[%clk 0:01:43.6]} 20... exd5 {[%clk
0:02:17.6]} 21. Rxc3 {[%clk 0:01:42.1]} 21... Ne7 {[%clk 0:02:15]} 22. Rb1
{[%clk 0:01:28.9]} 22... Rfd8 {[%clk 0:02:10.2]} 23. Bh3 {[%clk 0:01:27.2]}
23... f5 {[%clk 0:02:08.5]} 24. Nd4 {[%clk 0:01:27.8]} 24... g6 {[%clk
0:02:02.7]} 25. Ne6 {[%clk 0:01:24.7]} 25... Rd7 {[%clk 0:01:57.8]} 26. Nc5
{[%clk 0:01:25.3]} 26... bxc5 {[%clk 0:01:54.2]} 27. Rxb7 {[%clk 0:01:26.2]}
27... c4 {[%clk 0:01:50.1]} 28. e3 {[%clk 0:01:26.8]} 28... Kf7 {[%clk
0:01:47.4]} 29. Ra7 {[%clk 0:01:21.3]} 29... Rd6 {[%clk 0:01:47.3]} 30. Bf1
{[%clk 0:01:11.9]} 30... Ke6 {[%clk 0:01:44]} 31. f3 {[%clk 0:01:08.9]} 31...
Ke5 {[%clk 0:01:40.2]} 32. Rb7 {[%clk 0:00:53.3]} 32... Rb6 {[%clk 0:01:37.5]}
33. Ra7 {[%clk 0:00:52.4]} 33... Nc6 {[%clk 0:01:36.3]} 0-1

[Event "Early-Titled-Tuesday-Blitz-January-16-2024"]
[Site "Chess.com"]
[Date "2024.01.16"]
[Round "2"]
[White "Glaive_64"]
[Black "Hongjin"]
[Result "1-0"]
[WhiteElo "2362"]
[BlackElo "2600"]
[TimeControl "180+1"]
[EndTime "8:16:13 PST"]
[Termination "Glaive_64 won by resignation"]

1. Nf3 {[%clk 0:02:54.1]} 1... Nf6 {[%clk 0:02:59.9]} 2. g3 {[%clk 0:02:54.2]}
2... g6 {[%clk 0:02:59.9]} 3. Bg2 {[%clk 0:02:54.8]} 3... Bg7 {[%clk 0:03:00.8]}
4. O-O {[%clk 0:02:55]} 4... O-O {[%clk 0:03:01.7]} 5. d3 {[%clk 0:02:55]} 5...
d6 {[%clk 0:03:02.4]} 6. Nbd2 {[%clk 0:02:55.4]} 6... c6 {[%clk 0:03:03.3]} 7.
h3 {[%clk 0:02:55.6]} 7... Qa5 {[%clk 0:03:03.7]} 8. e4 {[%clk 0:02:54.2]} 8...
Qh5 {[%clk 0:03:03.8]} 9. Kh2 {[%clk 0:02:52.7]} 9... Bg4 {[%clk 0:03:00.6]} 10.
Qe1 {[%clk 0:02:46.2]} 10... Nbd7 {[%clk 0:02:57.3]} 11. Nd4 {[%clk 0:02:40.3]}
11... Bxh3 {[%clk 0:02:53.1]} 12. Bxh3 {[%clk 0:02:39.4]} 12... Ng4+ {[%clk
0:02:53.7]} 13. Kg2 {[%clk 0:02:37.4]} 13... Bxd4 {[%clk 0:02:54.6]} 14. Nf3
{[%clk 0:02:28.6]} 14... Bg7 {[%clk 0:02:54.3]} 15. Rh1 {[%clk 0:02:28.6]} 15...
e5 {[%clk 0:02:46.8]} 16. Ng5 {[%clk 0:02:03.4]} 16... f5 {[%clk 0:02:38.7]} 17.
Bxg4 {[%clk 0:01:59.8]} 17... Qxg4 {[%clk 0:02:38.2]} 18. Rh4 {[%clk 0:01:59.2]}
18... Qxh4 {[%clk 0:02:38.4]} 19. gxh4 {[%clk 0:01:59.4]} 19... Rae8 {[%clk
0:02:37]} 20. f3 {[%clk 0:01:51.2]} 20... Nf6 {[%clk 0:02:35.7]} 21. Bd2 {[%clk
0:01:50.1]} 21... Nh5 {[%clk 0:02:35.2]} 22. Nh3 {[%clk 0:01:48.4]} 22... Bf6
{[%clk 0:02:33.7]} 23. Bg5 {[%clk 0:01:47.7]} 23... Bxg5 {[%clk 0:02:33.9]} 24.
hxg5 {[%clk 0:01:48]} 24... fxe4 {[%clk 0:02:34.3]} 25. fxe4 {[%clk 0:01:48]}
25... Rf7 {[%clk 0:02:34.7]} 26. Qe2 {[%clk 0:01:41.6]} 26... Ref8 {[%clk
0:02:34.3]} 27. Rg1 {[%clk 0:01:41.2]} 27... Kg7 {[%clk 0:02:28]} 28. Kh2 {[%clk
0:01:29.1]} 28... Rf3 {[%clk 0:02:23.2]} 29. Qd2 {[%clk 0:01:21.8]} 29... R8f7
{[%clk 0:02:10.6]} 30. Rg2 {[%clk 0:01:19]} 30... Kg8 {[%clk 0:02:03.3]} 31. Rf2
{[%clk 0:01:17.5]} 31... d5 {[%clk 0:01:53.8]} 32. Rxf3 {[%clk 0:01:16.4]} 32...
Rxf3 {[%clk 0:01:54.7]} 33. Kg2 {[%clk 0:01:16.3]} 33... Rf7 {[%clk 0:01:51.6]}
34. Qb4 {[%clk 0:01:11.2]} 34... d4 {[%clk 0:01:47.5]} 35. Qd6 {[%clk
0:01:10.1]} 1-0

[Event "Early-Titled-Tuesday-Blitz-January-16-2024"]
[Site "Chess.com"]
[Date "2024.01.16"]
[Round "2"]
[White "baki83"]
[Black "Perecke"]
[Result "1-0"]
[WhiteElo "2859"]
[BlackElo "2572"]
[TimeControl "180+1"]
[EndTime "8:16:19 PST"]
[Termination "baki83 won by resignation"]

1. e4 {[%clk 0:03:00.9]} 1... c5 {[%clk 0:02:59.3]} 2. Nf3 {[%clk 0:03:00.8]}
2... e6 {[%clk 0:02:59]} 3. c3 {[%clk 0:03:00.3]} 3... d5 {[%clk 0:02:58.8]} 4.
exd5 {[%clk 0:03:00.5]} 4... Qxd5 {[%clk 0:02:59.7]} 5. d4 {[%clk 0:03:00.7]}
5... Nc6 {[%clk 0:02:57.3]} 6. Na3 {[%clk 0:02:59.1]} 6... cxd4 {[%clk
0:02:56.4]} 7. Nb5 {[%clk 0:02:59]} 7... Qd7 {[%clk 0:02:47.7]} 8. Bf4 {[%clk
0:02:48.5]} 8... e5 {[%clk 0:02:22.1]} 9. Nxe5 {[%clk 0:02:46.5]} 9... Qe7
{[%clk 0:02:21.3]} 10. Qe2 {[%clk 0:02:39.8]} 10... Nxe5 {[%clk 0:01:59.3]} 11.
Qxe5 {[%clk 0:02:39]} 11... Kd8 {[%clk 0:01:37.3]} 12. O-O-O {[%clk 0:02:31.4]}
12... Qxe5 {[%clk 0:01:36]} 13. Bxe5 {[%clk 0:02:31.6]} 13... Bd7 {[%clk
0:01:33.9]} 14. Bxd4 {[%clk 0:02:22.6]} 14... a6 {[%clk 0:01:29.8]} 15. Bb6+
{[%clk 0:02:21.9]} 15... Kc8 {[%clk 0:01:29.5]} 16. Nc7 {[%clk 0:02:17.2]} 16...
Rb8 {[%clk 0:01:26.7]} 17. Nxa6 {[%clk 0:02:17.2]} 17... Ra8 {[%clk 0:01:23.8]}
18. Nc7 {[%clk 0:02:00.3]} 18... Rxa2 {[%clk 0:00:33.5]} 19. Kb1 {[%clk
0:01:57.6]} 19... Ba4 {[%clk 0:00:26.5]} 20. Re1 {[%clk 0:01:25.2]} 20... Bb3
{[%clk 0:00:23.9]} 21. Re8+ {[%clk 0:01:23.3]} 21... Kd7 {[%clk 0:00:24.1]} 22.
Bb5+ {[%clk 0:01:23.2]} 1-0

[Event "Early-Titled-Tuesday-Blitz-January-16-2024"]
[Site "Chess.com"]
[Date "2024.01.16"]
[Round "2"]
[White "m_ezat"]
[Black "Mihajlovskij"]
[Result "1-0"]
[WhiteElo "2495"]
[BlackElo "2214"]
[TimeControl "180+1"]
[EndTime "8:16:19 PST"]
[Termination "m_ezat won by resignation"]

1. d4 {[%clk 0:02:52.6]} 1... Nf6 {[%clk 0:02:59.6]} 2. c4 {[%clk 0:02:47.2]}
2... g6 {[%clk 0:02:59.7]} 3. Nc3 {[%clk 0:02:47.4]} 3... Bg7 {[%clk 0:02:56.1]}
4. e4 {[%clk 0:02:47.4]} 4... O-O {[%clk 0:02:55.8]} 5. Be2 {[%clk 0:02:47.9]}
5... d6 {[%clk 0:02:55.9]} 6. Bg5 {[%clk 0:02:48.4]} 6... h6 {[%clk 0:02:54.2]}
7. Be3 {[%clk 0:02:47.7]} 7... Na6 {[%clk 0:02:52.6]} 8. Qd2 {[%clk 0:02:47.2]}
8... Kh7 {[%clk 0:02:52.8]} 9. h4 {[%clk 0:02:40.2]} 9... c5 {[%clk 0:02:50.7]}
10. d5 {[%clk 0:02:36.7]} 10... e6 {[%clk 0:02:45.4]} 11. Bg5 {[%clk 0:01:35.6]}
11... Rh8 {[%clk 0:02:28.3]} 12. g4 {[%clk 0:01:14.7]} 12... hxg5 {[%clk
0:02:26.3]} 13. hxg5+ {[%clk 0:01:12.9]} 13... Kg8 {[%clk 0:02:26.9]} 14. Rxh8+
{[%clk 0:01:12.2]} 14... Bxh8 {[%clk 0:02:27.8]} 15. gxf6 {[%clk 0:01:12.5]}
15... Bxf6 {[%clk 0:02:25.1]} 16. Nf3 {[%clk 0:01:11]} 16... exd5 {[%clk
0:02:22.8]} 17. Nxd5 {[%clk 0:01:11.2]} 17... Be6 {[%clk 0:02:20]} 18. Nf4
{[%clk 0:01:01.9]} 18... Qe7 {[%clk 0:02:03]} 19. Nxe6 {[%clk 0:00:55]} 19...
Qxe6 {[%clk 0:02:03.9]} 20. g5 {[%clk 0:00:52.6]} 20... Bg7 {[%clk 0:02:02.1]}
21. a3 {[%clk 0:00:45.1]} 21... Qxe4 {[%clk 0:01:56.8]} 22. O-O-O {[%clk
0:00:44]} 22... Rd8 {[%clk 0:01:35.1]} 23. Nh2 {[%clk 0:00:40.3]} 23... Be5
{[%clk 0:01:29.7]} 24. Ng4 {[%clk 0:00:37]} 24... Bf4 {[%clk 0:01:29.1]} 25.
Nf6+ {[%clk 0:00:37.1]} 25... Kg7 {[%clk 0:01:28.2]} 26. Nxe4 {[%clk 0:00:37.6]}
26... Bxd2+ {[%clk 0:01:28.6]} 27. Rxd2 {[%clk 0:00:37.9]} 1-0

[Event "Early-Titled-Tuesday-Blitz-January-16-2024"]
[Site "Chess.com"]
[Date "2024.01.16"]
[Round "2"]
[White "DarZay"]
[Black "CSB7"]
[Result "0-1"]
[WhiteElo "2249"]
[BlackElo "2694"]
[TimeControl "180+1"]
[EndTime "8:16:21 PST"]
[Termination "CSB7 won by resignation"]

1. e4 {[%clk 0:03:00.9]} 1... Nf6 {[%clk 0:03:00.9]} 2. e5 {[%clk 0:03:00.2]}
2... Nd5 {[%clk 0:03:01]} 3. d4 {[%clk 0:02:59.5]} 3... d6 {[%clk 0:02:59.1]} 4.
c4 {[%clk 0:02:56.1]} 4... Nb6 {[%clk 0:02:59]} 5. Nf3 {[%clk 0:02:55.6]} 5...
Bg4 {[%clk 0:02:44.2]} 6. Be2 {[%clk 0:02:48.7]} 6... e6 {[%clk 0:02:32.5]} 7.
Nc3 {[%clk 0:02:46.8]} 7... Be7 {[%clk 0:02:16.4]} 8. O-O {[%clk 0:02:40]} 8...
O-O {[%clk 0:02:16.4]} 9. b3 {[%clk 0:02:29.6]} 9... Nc6 {[%clk 0:02:10.4]} 10.
exd6 {[%clk 0:02:28.8]} 10... cxd6 {[%clk 0:02:10.1]} 11. d5 {[%clk 0:02:22.8]}
11... exd5 {[%clk 0:02:05.3]} 12. Nxd5 {[%clk 0:02:21.9]} 12... Nxd5 {[%clk
0:01:52.2]} 13. Qxd5 {[%clk 0:02:20.9]} 13... Bf6 {[%clk 0:01:32.4]} 14. Rb1
{[%clk 0:02:16.8]} 14... Nb4 {[%clk 0:01:05.2]} 15. Qxb7 {[%clk 0:01:57.5]}
15... Nxa2 {[%clk 0:00:55.4]} 16. Bb2 {[%clk 0:01:53.3]} 16... Bxb2 {[%clk
0:00:49.1]} 17. Rxb2 {[%clk 0:01:53.1]} 17... Nc3 {[%clk 0:00:49.8]} 18. Bd3
{[%clk 0:01:49.1]} 18... Rb8 {[%clk 0:00:44.2]} 19. Qc6 {[%clk 0:01:48.4]} 19...
Rb6 {[%clk 0:00:39.5]} 20. Qxb6 {[%clk 0:01:36.5]} 20... axb6 {[%clk 0:00:30.7]}
21. Rc1 {[%clk 0:01:33.8]} 21... Bxf3 {[%clk 0:00:21]} 22. gxf3 {[%clk
0:01:33.1]} 22... Qg5+ {[%clk 0:00:21.2]} 0-1

[Event "Early-Titled-Tuesday-Blitz-January-16-2024"]
[Site "Chess.com"]
[Date "2024.01.16"]
[Round "2"]
[White "AlexLongson"]
[Black "Marcin"]
[Result "0-1"]
[WhiteElo "2198"]
[BlackElo "2499"]
[TimeControl "180+1"]
[EndTime "8:16:23 PST"]
[Termination "Marcin won by resignation"]

1. e4 {[%clk 0:02:58.2]} 1... e5 {[%clk 0:02:58.7]} 2. Nf3 {[%clk 0:02:58.4]}
2... Nf6 {[%clk 0:02:51.9]} 3. Nxe5 {[%clk 0:02:58.4]} 3... d6 {[%clk
0:02:51.9]} 4. Nf3 {[%clk 0:02:58.3]} 4... Nxe4 {[%clk 0:02:52.6]} 5. c4 {[%clk
0:02:56.3]} 5... c6 {[%clk 0:02:50.4]} 6. Nc3 {[%clk 0:02:54.9]} 6... Nxc3
{[%clk 0:02:50]} 7. dxc3 {[%clk 0:02:55.8]} 7... Be7 {[%clk 0:02:50.4]} 8. Bf4
{[%clk 0:02:55.4]} 8... O-O {[%clk 0:02:50.7]} 9. Qd2 {[%clk 0:02:53.9]} 9...
Nd7 {[%clk 0:02:50.2]} 10. O-O-O {[%clk 0:02:51.9]} 10... Nc5 {[%clk 0:02:48.9]}
11. Qc2 {[%clk 0:02:35.3]} 11... Bg4 {[%clk 0:02:47.3]} 12. Bd3 {[%clk
0:02:25.5]} 12... g6 {[%clk 0:02:25.9]} 13. h3 {[%clk 0:01:46.6]} 13... Bxf3
{[%clk 0:02:18.4]} 14. gxf3 {[%clk 0:01:47.5]} 14... Bg5 {[%clk 0:02:18.7]} 15.
Bxg5 {[%clk 0:01:03.8]} 15... Qxg5+ {[%clk 0:02:19.6]} 16. Kb1 {[%clk
0:01:04.3]} 16... Rfe8 {[%clk 0:02:04.2]} 17. h4 {[%clk 0:01:03.2]} 17... Qh5
{[%clk 0:02:03.4]} 18. Rdg1 {[%clk 0:00:48.6]} 18... Qxf3 {[%clk 0:01:55.5]} 19.
Bxg6 {[%clk 0:00:27.6]} 19... fxg6 {[%clk 0:01:42.8]} 20. Rxg6+ {[%clk
0:00:26.7]} 20... Kh8 {[%clk 0:01:24.5]} 21. Rxd6 {[%clk 0:00:25.4]} 21... Qxh1+
{[%clk 0:01:23.7]} 0-1

[Event "Early-Titled-Tuesday-Blitz-January-16-2024"]
[Site "Chess.com"]
[Date "2024.01.16"]
[Round "2"]
[White "tigurones"]
[Black "jk13"]
[Result "0-1"]
[WhiteElo "2366"]
[BlackElo "2670"]
[TimeControl "180+1"]
[EndTime "8:16:39 PST"]
[Termination "jk13 won by resignation"]

1. d4 {[%clk 0:03:00.9]} 1... Nf6 {[%clk 0:02:41.3]} 2. Nf3 {[%clk 0:03:00.3]}
2... e6 {[%clk 0:02:41.3]} 3. Bf4 {[%clk 0:03:00.3]} 3... d5 {[%clk 0:02:41.8]}
4. e3 {[%clk 0:03:00.6]} 4... Bd6 {[%clk 0:02:42.7]} 5. Bg3 {[%clk 0:03:00.6]}
5... O-O {[%clk 0:02:43.4]} 6. Bd3 {[%clk 0:03:00.9]} 6... b6 {[%clk 0:02:44.1]}
7. Nbd2 {[%clk 0:03:00.7]} 7... Ba6 {[%clk 0:02:44.7]} 8. O-O {[%clk 0:02:57.1]}
8... Bxd3 {[%clk 0:02:43.8]} 9. cxd3 {[%clk 0:02:58]} 9... c5 {[%clk 0:02:44.2]}
10. dxc5 {[%clk 0:02:54.4]} 10... bxc5 {[%clk 0:02:44.1]} 11. e4 {[%clk
0:02:50.4]} 11... Bxg3 {[%clk 0:02:43.2]} 12. hxg3 {[%clk 0:02:49.9]} 12... Qb6
{[%clk 0:02:40.8]} 13. Qb3 {[%clk 0:02:42.8]} 13... Nc6 {[%clk 0:02:38.1]} 14.
Qxb6 {[%clk 0:02:28.9]} 14... axb6 {[%clk 0:02:37.7]} 15. a3 {[%clk 0:02:29.1]}
15... Rfd8 {[%clk 0:02:28.7]} 16. Rfd1 {[%clk 0:02:26.2]} 16... Rd7 {[%clk
0:02:23.2]} 17. Rac1 {[%clk 0:02:13.4]} 17... Rad8 {[%clk 0:02:19.3]} 18. e5
{[%clk 0:02:04.6]} 18... Ng4 {[%clk 0:02:19.2]} 19. d4 {[%clk 0:02:05.1]} 19...
c4 {[%clk 0:01:49.3]} 20. b3 {[%clk 0:02:04.2]} 20... b5 {[%clk 0:01:49]} 21. a4
{[%clk 0:02:04]} 21... bxa4 {[%clk 0:01:48.6]} 22. bxc4 {[%clk 0:02:03.3]} 22...
dxc4 {[%clk 0:01:48.8]} 23. Rxc4 {[%clk 0:02:00.8]} 23... Nxd4 {[%clk 0:01:42]}
24. Ra1 {[%clk 0:01:56.8]} 24... Nxf3+ {[%clk 0:01:26.5]} 25. gxf3 {[%clk
0:01:54.1]} 25... Nxe5 {[%clk 0:01:26]} 26. Re4 {[%clk 0:01:49.9]} 26... Rxd2
{[%clk 0:01:21]} 27. Rxe5 {[%clk 0:01:47.5]} 27... Rd1+ {[%clk 0:01:17.3]} 28.
Rxd1 {[%clk 0:01:47.7]} 28... Rxd1+ {[%clk 0:01:17.7]} 29. Kg2 {[%clk
0:01:48.6]} 29... Rd5 {[%clk 0:01:15.6]} 30. Re2 {[%clk 0:01:41.8]} 30... Ra5
{[%clk 0:01:14.1]} 31. f4 {[%clk 0:01:41]} 31... a3 {[%clk 0:01:13.8]} 32. Ra2
{[%clk 0:01:41.1]} 32... f6 {[%clk 0:01:07]} 33. Kf3 {[%clk 0:01:40.6]} 33...
Kf7 {[%clk 0:01:07.7]} 34. Ke3 {[%clk 0:01:39.7]} 34... h5 {[%clk 0:01:08]} 35.
Kf3 {[%clk 0:01:34.8]} 35... Kg6 {[%clk 0:01:08.4]} 36. g4 {[%clk 0:01:34.7]}
36... hxg4+ {[%clk 0:01:08.1]} 37. Kxg4 {[%clk 0:01:35.6]} 37... Ra4 {[%clk
0:01:08.5]} 38. Kg3 {[%clk 0:01:35.8]} 38... Kf5 {[%clk 0:01:09]} 39. f3 {[%clk
0:01:34.9]} 39... g6 {[%clk 0:01:08.9]} 40. Ra1 {[%clk 0:01:31.2]} 40... a2
{[%clk 0:01:07.6]} 41. Kg2 {[%clk 0:01:30.9]} 41... Kxf4 {[%clk 0:01:08.5]} 42.
Kf2 {[%clk 0:01:31.6]} 42... Ra3 {[%clk 0:01:08.7]} 43. Kg2 {[%clk 0:01:31.9]}
43... g5 {[%clk 0:01:09]} 44. Kf2 {[%clk 0:01:31.8]} 44... Rxf3+ {[%clk
0:01:08.7]} 45. Ke2 {[%clk 0:01:32.5]} 45... Ra3 {[%clk 0:01:04.4]} 46. Kd2
{[%clk 0:01:32.8]} 46... g4 {[%clk 0:01:03.8]} 47. Kc2 {[%clk 0:01:33.3]} 47...
f5 {[%clk 0:01:02.7]} 48. Kb2 {[%clk 0:01:33.7]} 48... Rf3 {[%clk 0:00:58.6]}
49. Rb1 {[%clk 0:01:32.7]} 49... axb1=Q+ {[%clk 0:00:58]} 0-1

[Event "Early-Titled-Tuesday-Blitz-January-16-2024"]
[Site "Chess.com"]
[Date "2024.01.16"]
[Round "2"]
[White "GMWSO"]
[Black "OriTaichman"]
[Result "1-0"]
[WhiteElo "3085"]
[BlackElo "2659"]
[TimeControl "180+1"]
[EndTime "8:16:40 PST"]
[Termination "GMWSO won by resignation"]

1. d4 {[%clk 0:03:00.9]} 1... Nf6 {[%clk 0:02:56]} 2. c4 {[%clk 0:03:00]} 2...
g6 {[%clk 0:02:55.2]} 3. Nc3 {[%clk 0:03:00]} 3... Bg7 {[%clk 0:02:55]} 4. e4
{[%clk 0:02:59.9]} 4... O-O {[%clk 0:02:55.8]} 5. Nge2 {[%clk 0:02:59.1]} 5...
d6 {[%clk 0:02:53]} 6. Be3 {[%clk 0:02:59]} 6... Ng4 {[%clk 0:02:46.8]} 7. Bg5
{[%clk 0:02:58.9]} 7... h6 {[%clk 0:02:46.7]} 8. Bh4 {[%clk 0:02:56.2]} 8... c5
{[%clk 0:02:46.1]} 9. Qd2 {[%clk 0:02:49.3]} 9... cxd4 {[%clk 0:02:28.8]} 10.
Nxd4 {[%clk 0:02:49]} 10... Nc6 {[%clk 0:02:29.3]} 11. Nc2 {[%clk 0:02:40.7]}
11... Be6 {[%clk 0:02:25.3]} 12. Be2 {[%clk 0:02:38.6]} 12... Nge5 {[%clk
0:02:24.7]} 13. Nd5 {[%clk 0:02:31]} 13... a6 {[%clk 0:02:15.4]} 14. O-O {[%clk
0:02:27.4]} 14... g5 {[%clk 0:02:10.3]} 15. Bg3 {[%clk 0:02:27.3]} 15... Rb8
{[%clk 0:01:55]} 16. f4 {[%clk 0:02:17.6]} 16... gxf4 {[%clk 0:01:54.9]} 17.
Bxf4 {[%clk 0:02:18.2]} 17... Kh7 {[%clk 0:01:49.9]} 18. Kh1 {[%clk 0:02:18.2]}
18... b5 {[%clk 0:01:49.4]} 19. cxb5 {[%clk 0:02:19.1]} 19... axb5 {[%clk
0:01:49.5]} 20. Nce3 {[%clk 0:02:19.4]} 20... Na5 {[%clk 0:01:34.8]} 21. Nf5
{[%clk 0:02:16.2]} 21... Nac4 {[%clk 0:01:33.1]} 22. Bxc4 {[%clk 0:02:11]} 22...
Nxc4 {[%clk 0:01:32.8]} 23. Qe2 {[%clk 0:02:08.1]} 23... Bxf5 {[%clk 0:01:27.2]}
24. exf5 {[%clk 0:02:09]} 24... Rb7 {[%clk 0:01:14.8]} 25. f6 {[%clk 0:02:06.1]}
25... exf6 {[%clk 0:01:14.7]} 26. b3 {[%clk 0:02:02.3]} 26... Ne5 {[%clk
0:01:14.1]} 27. Qe4+ {[%clk 0:02:00.6]} 27... Kh8 {[%clk 0:01:11.3]} 28. Nxf6
{[%clk 0:01:59.8]} 28... Qxf6 {[%clk 0:00:50.8]} 29. Qxb7 {[%clk 0:01:59.6]}
29... Nd3 {[%clk 0:00:42.9]} 30. Bg3 {[%clk 0:01:57.1]} 30... Qg5 {[%clk
0:00:33.2]} 31. Rad1 {[%clk 0:01:54.7]} 31... Nb2 {[%clk 0:00:24.1]} 32. Rxd6
{[%clk 0:01:52.5]} 32... h5 {[%clk 0:00:23.2]} 33. Rd5 {[%clk 0:01:50.6]} 33...
Qg4 {[%clk 0:00:20.3]} 34. Qxb5 {[%clk 0:01:49.3]} 1-0

[Event "Early-Titled-Tuesday-Blitz-January-16-2024"]
[Site "Chess.com"]
[Date "2024.01.16"]
[Round "2"]
[White "Grischuk"]
[Black "SashaKuzhilniy"]
[Result "1-0"]
[WhiteElo "3094"]
[BlackElo "2663"]
[TimeControl "180+1"]
[EndTime "8:16:42 PST"]
[Termination "Grischuk won by checkmate"]

1. d4 {[%clk 0:03:00.9]} 1... Nf6 {[%clk 0:02:59.9]} 2. c4 {[%clk 0:03:00.9]}
2... g6 {[%clk 0:03:00.3]} 3. g3 {[%clk 0:03:00.5]} 3... Bg7 {[%clk 0:03:00.7]}
4. Bg2 {[%clk 0:03:00.6]} 4... O-O {[%clk 0:03:01.1]} 5. Nc3 {[%clk 0:03:01.2]}
5... d6 {[%clk 0:03:01.5]} 6. Nf3 {[%clk 0:03:00.6]} 6... c5 {[%clk 0:03:02]} 7.
O-O {[%clk 0:02:55.5]} 7... Nc6 {[%clk 0:03:01.5]} 8. dxc5 {[%clk 0:02:42.2]}
8... dxc5 {[%clk 0:03:02.4]} 9. Bf4 {[%clk 0:02:40.8]} 9... Nh5 {[%clk
0:03:01.8]} 10. Be3 {[%clk 0:02:40.7]} 10... b6 {[%clk 0:03:02.4]} 11. Qc1
{[%clk 0:02:40.6]} 11... Bb7 {[%clk 0:02:58.1]} 12. Rd1 {[%clk 0:02:35.1]} 12...
Qe8 {[%clk 0:02:58.2]} 13. Bh6 {[%clk 0:02:32.8]} 13... Rd8 {[%clk 0:02:52.3]}
14. Qe3 {[%clk 0:02:07.6]} 14... Bxh6 {[%clk 0:02:42.9]} 15. Qxh6 {[%clk
0:02:08.5]} 15... f6 {[%clk 0:02:42.2]} 16. Rxd8 {[%clk 0:02:02.6]} 16... Qxd8
{[%clk 0:02:43.1]} 17. Rd1 {[%clk 0:02:01.9]} 17... Qb8 {[%clk 0:02:19.6]} 18.
Bh3 {[%clk 0:01:36.1]} 18... Ng7 {[%clk 0:02:17.2]} 19. Nd5 {[%clk 0:01:36.1]}
19... e6 {[%clk 0:01:39.5]} 20. Nxf6+ {[%clk 0:01:31.5]} 20... Rxf6 {[%clk
0:01:37.1]} 21. Ng5 {[%clk 0:01:32.1]} 21... Ne7 {[%clk 0:01:05.7]} 22. Qxh7+
{[%clk 0:01:06.4]} 22... Kf8 {[%clk 0:01:05.6]} 23. Qh8+ {[%clk 0:01:03.2]}
23... Ng8 {[%clk 0:01:05.7]} 24. Nh7+ {[%clk 0:00:51.9]} 24... Kf7 {[%clk
0:01:03]} 25. Rd7+ {[%clk 0:00:51.8]} 25... Ke8 {[%clk 0:00:52.9]} 26. Nxf6+
{[%clk 0:00:50.5]} 26... Kf8 {[%clk 0:00:49.2]} 27. Qxg8# {[%clk 0:00:50.4]} 1-0

[Event "Early-Titled-Tuesday-Blitz-January-16-2024"]
[Site "Chess.com"]
[Date "2024.01.16"]
[Round "2"]
[White "Sanyura"]
[Black "mitrabhaa"]
[Result "1-0"]
[WhiteElo "2618"]
[BlackElo "2904"]
[TimeControl "180+1"]
[EndTime "8:16:43 PST"]
[Termination "Sanyura won by resignation"]

1. e4 {[%clk 0:02:45.1]} 1... c6 {[%clk 0:02:59.6]} 2. d4 {[%clk 0:02:43.5]}
2... d5 {[%clk 0:03:00.5]} 3. e5 {[%clk 0:02:44.1]} 3... Bf5 {[%clk 0:03:00.2]}
4. h4 {[%clk 0:02:44.2]} 4... h5 {[%clk 0:02:59.9]} 5. c4 {[%clk 0:02:43.8]}
5... e6 {[%clk 0:03:00]} 6. Nc3 {[%clk 0:02:44.2]} 6... Bb4 {[%clk 0:03:00.1]}
7. Ne2 {[%clk 0:02:43.7]} 7... Ne7 {[%clk 0:02:57.2]} 8. Ng3 {[%clk 0:02:43.9]}
8... Bg6 {[%clk 0:02:57.2]} 9. Bg5 {[%clk 0:02:43.4]} 9... Nd7 {[%clk
0:02:55.3]} 10. Rc1 {[%clk 0:02:42.8]} 10... Qa5 {[%clk 0:02:50.3]} 11. Be2
{[%clk 0:02:40]} 11... dxc4 {[%clk 0:02:48.2]} 12. O-O {[%clk 0:02:39.5]} 12...
Nf5 {[%clk 0:02:43.7]} 13. Nxf5 {[%clk 0:02:38]} 13... Bxf5 {[%clk 0:02:44.6]}
14. Bxh5 {[%clk 0:02:37.8]} 14... Nb6 {[%clk 0:02:25.9]} 15. Qf3 {[%clk
0:02:30.8]} 15... Bxc3 {[%clk 0:02:13.1]} 16. bxc3 {[%clk 0:02:31.7]} 16... Qd5
{[%clk 0:02:13.9]} 17. Qd1 {[%clk 0:02:28.1]} 17... Be4 {[%clk 0:02:14]} 18. Re1
{[%clk 0:01:58.1]} 18... Bxg2 {[%clk 0:02:12.6]} 19. Qg4 {[%clk 0:01:58]} 19...
Bh1 {[%clk 0:01:47]} 20. Kh2 {[%clk 0:01:57.9]} 20... Rxh5 {[%clk 0:01:46.3]}
21. Rxh1 {[%clk 0:01:55.7]} 21... g6 {[%clk 0:01:46.6]} 22. Qf4 {[%clk
0:01:54.4]} 22... Qd7 {[%clk 0:01:42.1]} 23. Rb1 {[%clk 0:01:52.6]} 23... Nd5
{[%clk 0:01:40.5]} 24. Qf3 {[%clk 0:01:52.9]} 24... Rh7 {[%clk 0:01:35.2]} 25.
Kg2 {[%clk 0:01:53.1]} 25... Ne7 {[%clk 0:01:34.6]} 26. h5 {[%clk 0:01:48.7]}
26... Nf5 {[%clk 0:01:18]} 27. hxg6 {[%clk 0:01:48.8]} 27... fxg6 {[%clk
0:01:18.9]} 28. Rxh7 {[%clk 0:01:49]} 28... Qxh7 {[%clk 0:01:19.6]} 29. Rh1
{[%clk 0:01:49.6]} 29... Qg7 {[%clk 0:01:12.4]} 30. Bf6 {[%clk 0:01:49.5]} 30...
Qf8 {[%clk 0:00:31.7]} 31. Qg4 {[%clk 0:01:48.5]} 31... Kd7 {[%clk 0:00:23.2]}
32. Rh7+ {[%clk 0:01:48.3]} 32... Kc8 {[%clk 0:00:22.8]} 33. Qxg6 {[%clk
0:01:47.3]} 33... a5 {[%clk 0:00:17.5]} 34. Kf1 {[%clk 0:01:47.4]} 34... Kb8
{[%clk 0:00:14.4]} 35. Rh8 {[%clk 0:01:47.6]} 35... Ka7 {[%clk 0:00:15.3]} 1-0